Workbook

Sheet Worksheet
A1: HOJA DE PRECIO identificador: | H1: 1 | I1: 2
H2: HOJA:FINAL | I2: HOJA:INTERNO
B3: Código | C3: Nombre | D3: Código de Barras | E3: Unidad | F3: Categoria | G3: Costo Unitario (Bs) | H3: Precio Unitario(Hoja de Precio) Bs. | I3: Precio Unitario(Hoja de Precio) Bs.
B4: C007 | C4: AC - 19V - 4.74A | E4: UNIDAD (BIENES) | F4: CARGADOR | G4: 56 | H4: 120 | I4: 85
B5: C001 | C5: AC - 19V - 2.15A | E5: UNIDAD (BIENES) | F5: CARGADOR | G5: 0 | H5: 0 | I5: 0
B6: C002 | C6: AC - 19V - 2.37A | E6: UNIDAD (BIENES) | F6: CARGADOR | G6: 50 | H6: 100 | I6: 75
B7: C004 | C7: AC - 19V - 3.42A | E7: UNIDAD (BIENES) | F7: CARGADOR | G7: 45.5 | H7: 100 | I7: 75
B8: C006 | C8: AC - 19V - 3.95A | E8: UNIDAD (BIENES) | F8: CARGADOR | G8: 0 | H8: 0 | I8: 0
B9: C003 | C9: AC - 19V - 2.37A | E9: UNIDAD (BIENES) | F9: CARGADOR | G9: 50 | H9: 100 | I9: 75
B10: C005 | C10: AC - 19V - 3.42A | E10: UNIDAD (BIENES) | F10: CARGADOR | G10: 50 | H10: 100 | I10: 75
B11: C016 | C11: AP - 20V - 4.25A | E11: UNIDAD (BIENES) | F11: CARGADOR | G11: 186 | H11: 260 | I11: 235
B12: C013 | C12: AP - 16.5V - 3.65A | E12: UNIDAD (BIENES) | F12: CARGADOR | G12: 0 | H12: 0 | I12: 0
B13: C012 | C13: AP - 14.85V - 3.05A | E13: UNIDAD (BIENES) | F13: CARGADOR | G13: 171 | H13: 220 | I13: 200
B14: C011 | C14: AP - 14.5V - 3.1A | E14: UNIDAD (BIENES) | F14: CARGADOR | G14: 171 | H14: 220 | I14: 200
B15: C013 | C15: AP - 16.5V - 3.65A | E15: UNIDAD (BIENES) | F15: CARGADOR | G15: =15.2*9.75 -> 148.2 | H15: 220 | I15: 195
B16: C015 | C16: AP - 18.5V - 4.6A | E16: UNIDAD (BIENES) | F16: CARGADOR | G16: 171 | H16: 220 | I16: 200
B17: C012 | C17: AP - 14.85V - 3.05A | E17: UNIDAD (BIENES) | F17: CARGADOR | G17: 171 | H17: 220 | I17: 200
B18: C014 | C18: AP - 16.5V - 3.65A | E18: UNIDAD (BIENES) | F18: CARGADOR | G18: 171 | H18: 220 | I18: 200
B19: C017 | C19: AP - AUTOVOLTAGE 5v/3A - 20V/4.35A | E19: UNIDAD (BIENES) | F19: CARGADOR | G19: 260 | H19: 320 | I19: 295
B20: C018 | C20: AP - AUTOVOLTAGE 5v/3A - 20V/4.8A | E20: UNIDAD (BIENES) | F20: CARGADOR | G20: 260 | H20: 340 | I20: 305
B21: C019 | C21: ASU - 12V - 3A | E21: UNIDAD (BIENES) | F21: CARGADOR | G21: 53 | H21: 100 | I21: 75
B22: C024 | C22: ASU - 19V - 2.1A | E22: UNIDAD (BIENES) | F22: CARGADOR | G22: 50 | H22: 100 | I22: 75
B23: C028 | C23: ASU - 19V - 3.42A | E23: UNIDAD (BIENES) | F23: CARGADOR | G23: =4.67*9.75 -> 45.5325 | H23: 100 | I23: 75
B24: C030 | C24: ASU - 19V - 3.42A - CUADRADO | E24: UNIDAD (BIENES) | F24: CARGADOR | G24: 0 | H24: 0 | I24: 0
B25: C029 | C25: ASU - 19V - 3.42A | E25: UNIDAD (BIENES) | F25: CARGADOR | G25: 50 | H25: 100 | I25: 75
B26: C035 | C26: ASU - 19V - 6.32A | E26: UNIDAD (BIENES) | F26: CARGADOR | G26: 200 | H26: 270 | I26: 250
B27: C034 | C27: ASU - 19V - 7.1A | E27: UNIDAD (BIENES) | F27: CARGADOR | G27: 0 | H27: 0 | I27: 0
B28: C066 | C28: ASU - 19V - 3.42A - CUADRADO | E28: UNIDAD (BIENES) | F28: CARGADOR | G28: 80 | H28: 130 | I28: 110
B29: C032 | C29: ASU - 19V - 4.74 - CUADRADO | E29: UNIDAD (BIENES) | F29: CARGADOR | G29: 90 | H29: 150 | I29: 120
B30: CA-211 | C30: ASU - 20V - 3.25A - C | E30: UNIDAD (BIENES) | F30: CARGADOR | G30: 114 | H30: 180 | I30: 160
B31: C036 | C31: ASU - 19.5V - 7.7A | E31: UNIDAD (BIENES) | F31: CARGADOR | G31: =20.7*9.75 -> 201.825 | H31: 290 | I31: 260
B32: C039 | C32: DL - 19.5V - 2.31A | E32: UNIDAD (BIENES) | F32: CARGADOR | G32: 50 | H32: 100 | I32: 75
B33: C040 | C33: DL - 19.5V - 3.34A | E33: UNIDAD (BIENES) | F33: CARGADOR | G33: =4.8*9.75 -> 46.8 | H33: 100 | I33: 75
B34: C042 | C34: DL - 19.5V - 4.62A | E34: UNIDAD (BIENES) | F34: CARGADOR | G34: 56 | H34: 120 | I34: 85
B35: C045 | C35: DL - 19.5V - 6.7A | E35: UNIDAD (BIENES) | F35: CARGADOR | G35: 250 | H35: 330 | I35: 300
B36: C041 | C36: DL - 19.5V - 3.34A | E36: UNIDAD (BIENES) | F36: CARGADOR | G36: =4.8*9.75 -> 46.8 | H36: 100 | I36: 75
B37: C043 | C37: DL - 19.5V - 4.62A | E37: UNIDAD (BIENES) | F37: CARGADOR | G37: 56 | H37: 120 | I37: 85
B38: C044 | C38: DL - 19.5V - 6.7A | E38: UNIDAD (BIENES) | F38: CARGADOR | G38: =19.7*9.75 -> 192.075 | H38: 280 | I38: 250
B39: C046 | C39: DL - 19.5V - 9.5A | E39: UNIDAD (BIENES) | F39: CARGADOR | G39: 398 | H39: 460 | I39: 435
B40: C048 | C40: DL - 19.5V - 12.3A | E40: UNIDAD (BIENES) | F40: CARGADOR | G40: 470 | H40: 250 | I40: 210
B41: CA-169 | C41: DL - 20V - 3.25A | E41: UNIDAD (BIENES) | F41: CARGADOR | G41: 0 | H41: 0 | I41: 0
B42: C127 | C42: DL - 19.5V - 3.34A - - CUARTA GENERACION - ORGIGINAL | E42: UNIDAD (BIENES) | F42: CARGADOR | G42: 220 | H42: 330 | I42: 290
B43: CA-206 | C43: DELL 20V - 3.25A | E43: UNIDAD (BIENES) | F43: CARGADOR | G43: 120 | H43: 220 | I43: 175
B44: C050 | C44: H - 19.5V - 2.05A | E44: UNIDAD (BIENES) | F44: CARGADOR | G44: 50 | H44: 100 | I44: 75
B45: C051 | C45: H - 19.5V - 2.31A - AZUL | E45: UNIDAD (BIENES) | F45: CARGADOR | G45: =4.68*9.75 -> 45.63 | H45: 100 | I45: 75
B46: C053 | C46: H - 19.5V - 3.33A - AZUL | E46: UNIDAD (BIENES) | F46: CARGADOR | G46: =4.85*9.75 -> 47.2875 | H46: 100 | I46: 75
B47: C057 | C47: H - 19.5V - 4.62A - AZUL | E47: UNIDAD (BIENES) | F47: CARGADOR | G47: 56 | H47: 120 | I47: 85
B48: C059 | C48: H - 19.5V - 6.15A - EUROPEA | E48: UNIDAD (BIENES) | F48: CARGADOR | G48: 220 | H48: 320 | I48: 280
B49: C054 | C49: H - 19.5V - 3.33A - ENVY | E49: UNIDAD (BIENES) | F49: CARGADOR | G49: 50 | H49: 100 | I49: 75
B50: C055 | C50: H - 18.5V - 3.5A - AMARILLA | E50: UNIDAD (BIENES) | F50: CARGADOR | G50: =4.67*9.75 -> 45.5325 | H50: 100 | I50: 75
B51: C175 | C51: H AUTOVOLTAGE TIPO C | E51: UNIDAD (BIENES) | F51: CARGADOR | G51: =10.7*9.75 -> 104.325 | H51: 180 | I51: 150
B52: C056 | C52: H - 18.5V - 3.5A - AGUJA | E52: UNIDAD (BIENES) | F52: CARGADOR | G52: =4.67*9.75 -> 45.5325 | H52: 100 | I52: 75
B53: C052 | C53: H - 19.5V - 3.33A - AGUJA | E53: UNIDAD (BIENES) | F53: CARGADOR | G53: =4.68*9.75 -> 45.63 | H53: 100 | I53: 75
B54: C058 | C54: H - 19V - 4.74A - AZUL | E54: UNIDAD (BIENES) | F54: CARGADOR | G54: 56 | H54: 120 | I54: 85
B55: C060 | C55: H - 18.5V - 6.5A - AGUJA | E55: UNIDAD (BIENES) | F55: CARGADOR | G55: 220 | H55: 330 | I55: 290
B56: C133 | C56: H - 19.5V - 3.33A - AZUL - ORIGINAL | E56: UNIDAD (BIENES) | F56: CARGADOR | G56: =14.8*9.75 -> 144.3 | H56: 270 | I56: 230
B57: C135 | C57: H - 18.5V - 3.5A - AGUJA - ORIGINAL | E57: UNIDAD (BIENES) | F57: CARGADOR | G57: 134 | H57: 260 | I57: 220
B58: C134 | C58: H - 19.5V - 3.33A - AZUL - CUADRADO ORIGINAL | E58: UNIDAD (BIENES) | F58: CARGADOR | G58: =22.5*9.75 -> 219.375 | H58: 350 | I58: 310
B59: C141 | C59: H - 19.5V - 10.3A - AZUL - CUARTA GENERACION - ORIGINAL | E59: UNIDAD (BIENES) | F59: CARGADOR | G59: 503 | H59: 620 | I59: 580
B60: C064 | C60: LENO - 20V - 2.25A | E60: UNIDAD (BIENES) | F60: CARGADOR | G60: 50 | H60: 100 | I60: 75
B61: C068 | C61: LENO - 20V - 3.25A USB | E61: UNIDAD (BIENES) | F61: CARGADOR | G61: =5.35*9.75 -> 52.1625 | H61: 100 | I61: 75
B62: C075 | C62: LENO - 20V - 4.5A | E62: UNIDAD (BIENES) | F62: CARGADOR | G62: =6.7*9.75 -> 65.325 | H62: 120 | I62: 95
B63: C077 | C63: LENO - 20V - 6.75A | E63: UNIDAD (BIENES) | F63: CARGADOR | G63: 280 | H63: 360 | I63: 320
B64: C065 | C64: LENO - 20V - 2.25A | E64: UNIDAD (BIENES) | F64: CARGADOR | G64: 50 | H64: 100 | I64: 75
B65: C069 | C65: LENO - 20V - 3.25A | E65: UNIDAD (BIENES) | F65: CARGADOR | G65: =5.15*9.75 -> 50.2125 | H65: 100 | I65: 75
B66: C154 | C66: LENO - 20V - 3.25A - CUADRADO | E66: UNIDAD (BIENES) | F66: CARGADOR | G66: 0 | H66: 0 | I66: 0
B67: C072 | C67: LENO - 20V - 3.25A - MAGISTERIO - CP | E67: UNIDAD (BIENES) | F67: CARGADOR | G67: =5.15*9.75 -> 50.2125 | H67: 100 | I67: 75
B68: C071 | C68: LENO - 20V - 3.25A - PUNTA MARRON - MAGISTERIO | E68: UNIDAD (BIENES) | F68: CARGADOR | G68: 56 | H68: 120 | I68: 85
B69: CA-137 | C69: LENO - 20V - 3.25A - PUNTA GRIS | E69: UNIDAD (BIENES) | F69: CARGADOR | G69: 82 | H69: 120 | I69: 85
B70: CA-06 | C70: LENO - 20V - 4.5A PUNTA GRIS | E70: UNIDAD (BIENES) | F70: CARGADOR | G70: 86 | H70: 120
B71: C070 | C71: LENO - AUTOVOLTAGE | E71: UNIDAD (BIENES) | F71: CARGADOR | G71: 0 | H71: 190 | I71: 160
B72: CA-190 | C72: LENO 20V - 2.25A | E72: UNIDAD (BIENES) | F72: CARGADOR | G72: 105 | H72: 160 | I72: 145
B73: CA-156 | C73: LENO 20V - 3.25A | E73: UNIDAD (BIENES) | F73: CARGADOR | G73: 114 | H73: 180 | I73: 150
B74: C172 | C74: LENO - AUTOVOLTAGE - CUADRADO | E74: UNIDAD (BIENES) | F74: CARGADOR | G74: 0 | H74: 0 | I74: 0
B75: C073 | C75: LENO - 20V - 3.25A | E75: UNIDAD (BIENES) | F75: CARGADOR | G75: 153 | H75: 230 | I75: 195
B76: C085 | C76: SON - 19.5V - 3.3A | E76: UNIDAD (BIENES) | F76: CARGADOR | G76: 50 | H76: 100 | I76: 75
B77: C086 | C77: SON - 19.5V - 3.9A | E77: UNIDAD (BIENES) | F77: CARGADOR | G77: =5.2*9.75 -> 50.7 | H77: 120 | I77: 80
B78: C087 | C78: SON - 19.5V - 4.7A | E78: UNIDAD (BIENES) | F78: CARGADOR | G78: =5.4*9.75 -> 52.65 | H78: 120 | I78: 85
B79: C096 | C79: Autovoltage 5v/2.4A - 20V/3.25A | E79: UNIDAD (BIENES) | F79: CARGADOR | G79: 210 | H79: 280 | I79: 250
B80: C088 | C80: TOSHI - 19V - 2.37A | E80: UNIDAD (BIENES) | F80: CARGADOR | G80: 50 | H80: 100 | I80: 75
B81: C091 | C81: TOSHI - 19V - 3.42A | E81: UNIDAD (BIENES) | F81: CARGADOR | G81: =4.67*9.75 -> 45.5325 | H81: 100 | I81: 75
B82: C092 | C82: TOSHI - 19V - 3.95A | E82: UNIDAD (BIENES) | F82: CARGADOR | G82: =4.67*9.75 -> 45.5325 | H82: 100 | I82: 75
B83: C093 | C83: TOSHI - 19V - 4.74A | E83: UNIDAD (BIENES) | F83: CARGADOR | G83: =5.4*9.75 -> 52.65 | H83: 120 | I83: 85
B84: C094 | C84: TOSHI - 19V - 6.3A | E84: UNIDAD (BIENES) | F84: CARGADOR | G84: 280 | H84: 360 | I84: 330
B85: C089 | C85: TOSHI - 19V - 2.37A | E85: UNIDAD (BIENES) | F85: CARGADOR | G85: 50 | H85: 100 | I85: 75
B86: C090 | C86: TOSHI - 15V - 5A | E86: UNIDAD (BIENES) | F86: CARGADOR | G86: 50 | H86: 120 | I86: 85
B87: C082 | C87: SAM - 19V - 2.1A | E87: UNIDAD (BIENES) | F87: CARGADOR | G87: 50 | H87: 100 | I87: 75
B88: C083 | C88: SAM - 19V - 3.16A - MAGISTERIO | E88: UNIDAD (BIENES) | F88: CARGADOR | G88: =4.67*9.75 -> 45.5325 | H88: 100 | I88: 75
B89: C084 | C89: SAM - 19V - 4.74A | E89: UNIDAD (BIENES) | F89: CARGADOR | G89: =5.4*9.75 -> 52.65 | H89: 120 | I89: 85
B90: C097 | C90: SAM - CARGADOR MONITOR - SAM 14V - 2.14A | E90: UNIDAD (BIENES) | F90: CARGADOR | G90: =4.67*9.75 -> 45.5325 | H90: 100 | I90: 75
B91: C099 | C91: LG - CARGADOR MONITOR - LG 12V - 2A | E91: UNIDAD (BIENES) | F91: CARGADOR | G91: 50 | H91: 100 | I91: 75
B92: C076 | C92: LG - CARGADOR MONITOR LG 14V - 2.1A | E92: UNIDAD (BIENES) | F92: CARGADOR | G92: 50 | H92: 100 | I92: 75
B93: C100 | C93: LG - CARGADOR MONITOR - LG 19V - 2.1A | E93: UNIDAD (BIENES) | F93: CARGADOR | G93: 50 | H93: 100 | I93: 75
B94: C079 | C94: MICRSF - 12V - 3.6A | E94: UNIDAD (BIENES) | F94: CARGADOR | G94: 174 | H94: 260 | I94: 230
B95: C080 | C95: MICRSF - 15V - 1.6A | E95: UNIDAD (BIENES) | F95: CARGADOR | G95: 174 | H95: 260 | I95: 230
B96: C081 | C96: MICRSF - 12V - 2.58A | E96: UNIDAD (BIENES) | F96: CARGADOR | G96: 174 | H96: 260 | I96: 230
B97: C147 | C97: MICRSF - 15V - 2.58A | E97: UNIDAD (BIENES) | F97: CARGADOR | G97: 174 | H97: 260 | I97: 230
B98: B002 | C98: BATERIA ACER AS09A - AS07A - Aspire 4710 | E98: UNIDAD (BIENES) | F98: BATERIA | G98: 271.4 | H98: 285 | I98: 275
B99: B004 | C99: BATERIA ACER AS10D31 - Aspire 4741 - E1-471 | E99: UNIDAD (BIENES) | F99: BATERIA | G99: 167.48 | H99: 220 | I99: 200
B100: B003 | C100: BATERIA ACER AS07B31 - Aspire 5920 | E100: UNIDAD (BIENES) | F100: BATERIA | G100: 271.4 | H100: 285 | I100: 275
B101: B001 | C101: BATERIA ACER AL12A32 - Aspire V5 | E101: UNIDAD (BIENES) | F101: BATERIA | G101: 232.88 | H101: 250 | I101: 235
B102: B023 | C102: BATERIA ASUS X450. A41-X550A | E102: UNIDAD (BIENES) | F102: BATERIA | G102: 297.57 | H102: 320 | I102: 300
B103: B024 | C103: BATERIA ASUS X451. X551 - INTERNA | E103: UNIDAD (BIENES) | F103: BATERIA | G103: 0 | H103: 330 | I103: 310
B104: B027 | C104: BATERIA ASUS X455 - C21N1401 - INTERNA | E104: UNIDAD (BIENES) | F104: BATERIA | G104: 0 | H104: 420 | I104: 410
B105: B028 | C105: BATERIA ASUS X555 - C21N1347 - INTERNA | E105: UNIDAD (BIENES) | F105: BATERIA | G105: 0 | H105: 450 | I105: 440
B106: B029 | C106: BATERIA ASUS X541 - A31N1601 - INTERNA | E106: UNIDAD (BIENES) | F106: BATERIA | G106: 0 | H106: 385 | I106: 385
B107: B025 | C107: BATERIA ASUS X540. A31N1519 - INTERNA | E107: UNIDAD (BIENES) | F107: BATERIA | G107: 360 | H107: 385 | I107: 385
B108: B036 | C108: BATERIA DELL TYPE J1KND - Inspiron N4010-14R | E108: UNIDAD (BIENES) | F108: BATERIA | G108: 258 | H108: 270 | I108: 260
B109: B045 | C109: BATERIA DELL TYPE T54FJ - Latitude E6420 E6520 | E109: UNIDAD (BIENES) | F109: BATERIA | G109: 329 | H109: 360 | I109: 350
B110: B048 | C110: BATERIA DELL TYPE VV0NF - Latitude E5540 E5440 | E110: UNIDAD (BIENES) | F110: BATERIA | G110: 0 | H110: 0 | I110: 0
B111: B042 | C111: BATERIA DELL TYPE MR90Y - INSPIRON 3421 - 5421 - (B) 11.1V | E111: UNIDAD (BIENES) | F111: BATERIA | G111: 216 | H111: 250 | I111: 235
B112: B037 | C112: BATERIA DELL TYPE 268X5 - Vostro V131 Series | E112: UNIDAD (BIENES) | F112: BATERIA | G112: 289 | H112: 295 | I112: 295
B113: B051 | C113: BATERIA DELL TYPE M5Y1K - 3576 - 3451 | E113: UNIDAD (BIENES) | F113: BATERIA | G113: 354 | H113: 370 | I113: 370
B114: B258 | C114: BATERIA DELL YRDD6 - INTERNA - ORG | E114: UNIDAD (BIENES) | F114: BATERIA | G114: 554 | H114: 560 | I114: 560
B115: b064 | C115: BATERIA DELL 357F9 71JF4 - INTERNA | E115: UNIDAD (BIENES) | F115: BATERIA | H115: 530 | I115: 530
B116: B058 | C116: BATERIA DELL TYPE WDXOR - INTERNA | E116: UNIDAD (BIENES) | F116: BATERIA | G116: 285 | H116: 350 | I116: 320
B117: B067 | C117: BATERIA HP OA04 - 240 G2 | E117: UNIDAD (BIENES) | F117: BATERIA | G117: 157 | H117: 220 | I117: 195
B118: B068 | C118: BATERIA HP PH06 4320-420 PROBOOK | E118: UNIDAD (BIENES) | F118: BATERIA | G118: 231 | H118: 250 | I118: 235
B119: B069 | C119: BATERIA HP PR06-4330S - 4430S | E119: UNIDAD (BIENES) | F119: BATERIA | G119: 231 | H119: 240 | I119: 220
B120: B070 | C120: BATERIA HP MU06 - CQ42 - DM4 | E120: UNIDAD (BIENES) | F120: BATERIA | G120: =15.4*9.75 -> 150.15 | H120: 220 | I120: 195
B121: B071 | C121: BATERIA HP EV06 - DV4 - DV5 - CQ50 - CQ40 | E121: UNIDAD (BIENES) | F121: BATERIA | G121: 158 | H121: 220 | I121: 195
B122: B072 | C122: BATERIA HP HS04 - 240 G4 | E122: UNIDAD (BIENES) | F122: BATERIA | G122: =14.9*9.75 -> 145.275 | H122: 220 | I122: 195
B123: B073 | C123: BATERIA HP VI04- PROBOOK 440 G2 SERIES | E123: UNIDAD (BIENES) | F123: BATERIA | G123: =14.9*9.75 -> 145.275 | H123: 220 | I123: 195
B124: B076 | C124: BATERIA HP DV2000 - DV6000 | E124: UNIDAD (BIENES) | F124: BATERIA | G124: 154 | H124: 220 | I124: 195
B125: B260 | C125: BATERIA HP LA04 - PAVILION TOUCHSMART 14 15 PLATEADO | E125: UNIDAD (BIENES) | F125: BATERIA | G125: 199 | H125: 230 | I125: 210
B126: B079 | C126: BATERIA HP JC04 - 240 G6 6 CELDAS | E126: UNIDAD (BIENES) | F126: BATERIA | G126: =14.9*9.75 -> 145.275 | H126: 220 | I126: 195
B127: B095 | C127: BATERIA HP MO06 - MO09 - DV4-5000 | E127: UNIDAD (BIENES) | F127: BATERIA | G127: 199 | H127: 230 | I127: 210
B128: B098 | C128: BATERIA HP RI04 - PROBOOK 450 G3 | E128: UNIDAD (BIENES) | F128: BATERIA | G128: 205 | H128: 230 | I128: 215
B129: B093 | C129: BATERIA HP FP06 - PROBOOK 440 G1 | E129: UNIDAD (BIENES) | F129: BATERIA | G129: 234 | H129: 260 | I129: 245
B130: B114 | C130: BATERIA HP BP02 - INTERNA | E130: UNIDAD (BIENES) | F130: BATERIA | G130: =25.5*9.75 -> 248.625 | H130: 320 | I130: 300
B131: B116 | C131: BATERIA HP CS03 - INTERNA | E131: UNIDAD (BIENES) | F131: BATERIA | G131: 0 | H131: 0 | I131: 0
B132: B125 | C132: BATERIA HP HT03 - INTERNA | E132: UNIDAD (BIENES) | F132: BATERIA | G132: =25*9.75 -> 243.75 | H132: 350 | I132: 310
B133: b221 | C133: BATERIA HP HT03XL ORIGINAL | E133: UNIDAD (BIENES) | F133: BATERIA | G133: 345 | H133: 470 | I133: 420
B134: B133 | C134: BATERIA HP WR03XL - HSTNN-IB5J | E134: UNIDAD (BIENES) | F134: BATERIA | G134: 499 | H134: 520 | I134: 500
B135: B074 | C135: BATERIA HP KI04 - HSTNN - LB6S | E135: UNIDAD (BIENES) | F135: BATERIA | G135: 192 | H135: 230 | I135: 210
B136: B087 | C136: BATERIA HP MT03 - MINI 210-3000 | E136: UNIDAD (BIENES) | F136: BATERIA | G136: 238.56 | H136: 250 | I136: 245
B137: B094 | C137: BATERIA HP GA08 - DV7 - HSTNN-C50C | E137: UNIDAD (BIENES) | F137: BATERIA | G137: 299 | H137: 330 | I137: 310
B138: B099 | C138: BATERIA HP RO04 - PROBOOK 430 G3 | E138: UNIDAD (BIENES) | F138: BATERIA | G138: 224.36 | H138: 260 | I138: 235
B139: B103 | C139: BATERIA HP VK04 - YB4D Sleekbook 14/15 | E139: UNIDAD (BIENES) | F139: BATERIA | G139: 192.4 | H139: 230 | I139: 210
B140: B119 | C140: BATERIA HP LE03 - INTERNA | E140: UNIDAD (BIENES) | F140: BATERIA | G140: 382 | H140: 400 | I140: 390
B141: B131 | C141: BATERIA HP TE03XL- TE04 - INTERNA | E141: UNIDAD (BIENES) | F141: BATERIA | G141: 376 | H141: 400 | I141: 390
B142: B077 | C142: BATERIA HP PI06 - ENVY 14 - ENVY 15 | E142: UNIDAD (BIENES) | F142: BATERIA | G142: =15.8*9.75 -> 154.05 | H142: 220 | I142: 200
B143: B217 | C143: BATERIA HP OA04 ORIGINAL | E143: UNIDAD (BIENES) | F143: BATERIA | G143: 233 | H143: 310 | I143: 285
B144: B218 | C144: BATERIA HP HS04 ORIGINAL | E144: UNIDAD (BIENES) | F144: BATERIA | G144: 346.5 | H144: 350 | I144: 350
B145: B219 | C145: BATERIA HP JC04 ORIGINAL | E145: UNIDAD (BIENES) | F145: BATERIA | G145: 346.5 | H145: 350 | I145: 350
B146: B144 | C146: BATERIA LENOVO G460 - G560 - Z560 - V360 - Z460 | E146: UNIDAD (BIENES) | F146: BATERIA | G146: =15.4*9.75 -> 150.15 | H146: 220 | I146: 195
B147: B146 | C147: BATERIA LENOVO IdeaPad S400 | E147: UNIDAD (BIENES) | F147: BATERIA | G147: 438 | H147: 450 | I147: 450
B148: B152 | C148: BATERIA LENOVO G480 - Y480 - G580 | E148: UNIDAD (BIENES) | F148: BATERIA | G148: 291 | H148: 330 | I148: 320
B149: B319 | C149: BATERIA LENOVO T480 20L5 | E149: UNIDAD (BIENES) | F149: BATERIA | G149: 506 | H149: 530 | I149: 530
B150: B161 | C150: BATERIA LENOVO L16M2PB1 - L16C2PB2 INTERNA | E150: UNIDAD (BIENES) | F150: BATERIA | G150: 299 | H150: 330 | I150: 310
B151: B145 | C151: BATERIA LENOVO G400s G405s G410s G500s | E151: UNIDAD (BIENES) | F151: BATERIA | G151: 291 | H151: 320 | I151: 300
B152: B156 | C152: BATERIA LENOVO L15S3A02-3S1P - IdeaPad 110-15ISK - INTERNA | E152: UNIDAD (BIENES) | F152: BATERIA | G152: 343 | H152: 370 | I152: 360
B153: B147 | C153: BATERIA LENOVO T430 - T530 - W530 | E153: UNIDAD (BIENES) | F153: BATERIA | G153: 347 | H153: 370 | I153: 360
B154: B171 | C154: BATERIA SAMSUNG Q308 - Aapb9nc6b - R519 | E154: UNIDAD (BIENES) | F154: BATERIA | G154: =15.4*9.75 -> 150.15 | H154: 220 | I154: 195
B155: B176 | C155: BATERIA SONY VGP-BPS22 | E155: UNIDAD (BIENES) | F155: BATERIA | G155: 413 | H155: 420 | I155: 415
B156: B177 | C156: BATERIA SONY VGP-BPS26 | E156: UNIDAD (BIENES) | F156: BATERIA | G156: 397 | H156: 405 | I156: 405
B157: B178 | C157: BATERIA SONY VGP-BPS35 | E157: UNIDAD (BIENES) | F157: BATERIA | G157: 335 | H157: 345 | I157: 345
B158: B180 | C158: BATERIA TOSHIBA PA3534u - 3533 - A200 - L300 | E158: UNIDAD (BIENES) | F158: BATERIA | G158: 236 | H158: 230 | I158: 200
B159: B181 | C159: BATERIA TOSHIBA PA3817u - A665 - C650 | E159: UNIDAD (BIENES) | F159: BATERIA | G159: 154 | H159: 220 | I159: 195
B160: B182 | C160: BATERIA TOSHIBA PA5024 - C850 - L800 - C50 | E160: UNIDAD (BIENES) | F160: BATERIA | G160: 162 | H160: 220 | I160: 195
B161: B183 | C161: BATERIA TOSHIBA PA5185 - C55tb - PA5195 C50d | E161: UNIDAD (BIENES) | F161: BATERIA | G161: 148 | H161: 220 | I161: 195
B162: B193 | C162: BATERIA TOSHIBA PA5212U - A40 - A50 - C40 | E162: UNIDAD (BIENES) | F162: BATERIA | G162: 294 | H162: 320 | I162: 300
B163: B199 | C163: BATERIA TOSHIBA S955-SP5264SM - SATELLITE S900 - PA5077U PA5076 | E163: UNIDAD (BIENES) | F163: BATERIA | G163: 270 | H163: 295 | I163: 280
B164: B188 | C164: BATERIA TOSHIBA PA5107- 1BRS - L45 - L55 - INTERNA | E164: UNIDAD (BIENES) | F164: BATERIA | G164: 343 | H164: 360 | I164: 350
B165: B127 | C165: BATERIA HP SR03 / SR04 INTERNA | E165: UNIDAD (BIENES) | F165: BATERIA | G165: 250 | H165: 330 | I165: 310
B166: B111 | C166: BATERIA HP NP03XL INTERNA | E166: UNIDAD (BIENES) | F166: BATERIA | H166: 350 | I166: 330
B167: B057 | C167: BATERIA HP G5M10 GENERICO INTERNO | E167: UNIDAD (BIENES) | F167: BATERIA | H167: 350 | I167: 330
B168: B356 | C168: BATERIA HP G5M10 ORIGINAL INTERNO | E168: UNIDAD (BIENES) | F168: BATERIA | H168: 450 | I168: 420
B169: B249 | C169: AC AL15A32 - E5-472G INTERNA | E169: UNIDAD (BIENES) | F169: BATERIA | G169: 217 | H169: 270 | I169: 250
B170: B033 | C170: ASU A41N1424 - GL552 - ROG ZX50 | E170: UNIDAD (BIENES) | F170: BATERIA | G170: 180.2 | H170: 220 | I170: 200
B171: B110 | C171: BATERIA HP SE03XL INTERNO | E171: UNIDAD (BIENES) | F171: BATERIA | G171: =27.5*9.75 -> 268.125 | H171: 350 | I171: 320
B172: B123 | C172: BATERIA HP TF03XL INTERNO | E172: UNIDAD (BIENES) | F172: BATERIA | G172: =26.5*9.75 -> 258.375 | H172: 350 | I172: 320
B173: T001 | C173: TECLADO ESPAÑOL AC - 4710-4520-5520-5720-4920- 5710-5320 NEGRO | E173: UNIDAD (BIENES) | F173: TECLADO | G173: 0 | H173: 150 | I173: 145
B174: T007 | C174: TECLADO ESPAÑOL AC - V5-431/471 NEGRO | E174: UNIDAD (BIENES) | F174: TECLADO | G174: 0 | H174: 150 | I174: 140
B175: T004 | C175: TECLADO ESPAÑOL AC - ASPIRE E5-573G E5-722 NEGRO BOTON DE ENCENDIDO | E175: UNIDAD (BIENES) | F175: TECLADO | G175: 132.6 | H175: 15 | I175: 150
B176: T009 | C176: TECLADO ESPAÑOL AC - 5810-5742-5810T-5253 NEGRO | E176: UNIDAD (BIENES) | F176: TECLADO | G176: 132.6 | H176: 150 | I176: 150
B177: T137 | C177: TECLADO ESPAÑOL AC - ES1-131/ ES1-311 | E177: UNIDAD (BIENES) | F177: TECLADO | G177: 0 | H177: 150 | I177: 140
B178: T185 | C178: TECLADO ESPAÑOL ASU X202E - S200 - X201E | E178: UNIDAD (BIENES) | F178: TECLADO | G178: 0 | H178: 150 | I178: 140
B179: T012 | C179: TECLADO ESPAÑOL ASU - K53U X53 NEGRO | E179: UNIDAD (BIENES) | F179: TECLADO | G179: 0 | H179: 150 | I179: 140
B180: T013 | C180: TECLADO ESPAÑOL ASU - K55 / K55V / K55XI | E180: UNIDAD (BIENES) | F180: TECLADO | G180: 0 | H180: 150 | I180: 140
B181: T014 | C181: TECLADO ESPAÑOL ASU - ROG GL552-GL552J-GL552JX- GL551 ILUMINADO | E181: UNIDAD (BIENES) | F181: TECLADO | G181: 0 | H181: 380 | I181: 380
B182: T016 | C182: TECLADO ESPAÑOL ASU - X541 - X541U - X541UA - X541UV NEGRO | E182: UNIDAD (BIENES) | F182: TECLADO | G182: 0 | H182: 150 | I182: 140
B183: T017 | C183: TECLADO ESPAÑOL ASU - X550L NEGRO | E183: UNIDAD (BIENES) | F183: TECLADO | G183: 0 | H183: 150 | I183: 140
B184: T018 | C184: TECLADO ESPAÑOL ASU - X551CA NEGRO | E184: UNIDAD (BIENES) | F184: TECLADO | G184: 0 | H184: 150 | I184: 140
B185: T152 | C185: TECLADO ESPAÑOL ASU A556U - L556U - X556 | E185: UNIDAD (BIENES) | F185: TECLADO | G185: 0 | H185: 150 | I185: 145
B186: T178 | C186: TECLADO ASUS X420U GRIS | E186: UNIDAD (BIENES) | F186: TECLADO | G186: 0 | H186: 300 | I186: 300
B187: T196 | C187: TECLADO ESPAÑOL ASU - X407 - X407U - X407MA - NEGRO - NO NUMERICO | E187: UNIDAD (BIENES) | F187: TECLADO | G187: 130 | H187: 150 | I187: 150
B188: T201 | C188: TECLADO ESPAÑOL ASU - X52 - X54H - N52 - N60 / NSK- UGC0S - NEGRO - NUMERICO | E188: UNIDAD (BIENES) | F188: TECLADO | G188: 0 | H188: 150 | I188: 140
B189: T176 | C189: TECLADO ASUS X420U NEGRO | E189: UNIDAD (BIENES) | F189: TECLADO | G189: 0 | H189: 190 | I189: 190
B190: T103 | C190: TECLADO INGLES ASU - Q551L Q503U | E190: UNIDAD (BIENES) | F190: TECLADO | G190: 0 | H190: 150 | I190: 140
B191: T170 | C191: TECLADO INGLES ASUS V090562BS1 - P/N:0KN0-EL 1US01 CON FRAME | E191: UNIDAD (BIENES) | F191: TECLADO | G191: 132.6 | H191: 150 | I191: 145
B192: T171 | C192: TECLADO INGLES ASUS V090562BS1 - P/N:0KN0-EL 1US01 with frame - DISEÑO NORMAL - SIN FRAME | E192: UNIDAD (BIENES) | F192: TECLADO | G192: 132.6 | H192: 150 | I192: 145
B193: T166 | C193: TECLADO ESPAÑOL ASU - X555 - NUMERICO | E193: UNIDAD (BIENES) | F193: TECLADO | H193: 150 | I193: 145
B194: T186 | C194: TECLADO ESPAÑOL DL INSPIRON 3480 - 7380 - 7468 | E194: UNIDAD (BIENES) | F194: TECLADO | H194: 160 | I194: 160
B195: T183 | C195: TECLADO ESPAÑOL DL - E7240 - E7440 - NEGRO NO NUMERICO - ILUMINADO | E195: UNIDAD (BIENES) | F195: TECLADO | H195: 245 | I195: 245
B196: T019 | C196: TECLADO ESPAÑOL DL - INSP15-3000 -15 3541-15 3542 NEGRO | E196: UNIDAD (BIENES) | F196: TECLADO | G196: 0 | H196: 150 | I196: 145
B197: T020 | C197: TECLADO ESPAÑOL DL - INSPIRON 15-3521 NEGRO | E197: UNIDAD (BIENES) | F197: TECLADO | G197: 0 | H197: 150 | I197: 145
B198: T026 | C198: TECLADO ESPAÑOL DL - N5110 -15R MODERNO TECLA SEPAR NEGRO | E198: UNIDAD (BIENES) | F198: TECLADO | G198: 0 | H198: 160 | I198: 160
B199: T021 | C199: TECLADO ESPAÑOL DL - INSPIRON 15-3501 | E199: UNIDAD (BIENES) | F199: TECLADO | G199: 175.5 | H199: 190 | I199: 190
B200: T028 | C200: TECLADO ESPAÑOL H - 14-BS / 14BS / 14-bs011la NEGRO INTERNO / ENTER RECTO | E200: UNIDAD (BIENES) | F200: TECLADO | G200: 132.6 | H200: 150 | I200: 150
... 245 more rows

Sheet Hoja1
